bitfinex/quotes_ETHUSD_20251125
["timestamp","ask_amount","ask_price","bid_price","bid_amount"]
[1764088892670,0.4984,2929.8,2929.1,0.22]
[1764088893069,0.463,2929.2,2929.0,6.82826902]
[1764088893269,0.4984,2929.8,2929.1,0.22]
[1764088893469,0.4984,2929.8,2929.1,0.625504]
[1764088893700,0.002,2929.8,2929.2,0.533004]
[1764088893908,0.002,2929.8,2929.7,0.405504]
[1764088894202,0.465,2929.8,2929.2,0.405504]
[1764088894402,0.465,2929.8,2929.1,0.72559411]
[1764088894403,0.9614,2929.8,2929.5,6.8271036]
[1764088894994,0.002,2929.8,2929.5,6.8271036]
[1764088895197,0.002,2929.8,2929.7,0.405504]
[1764088895403,0.002,2929.8,2929.7,0.625504]
[1764088896301,0.0012,2929.8,2929.7,3.81882276]
[1764088896499,0.4642,2929.8,2929.7,4.13891287]
[1764088896698,0.9606,2929.8,2929.7,4.13891287]
[1764088896928,0.0012,2929.8,2929.7,4.35891287]
[1764088897703,0.9606,2929.8,2929.7,4.35891287]
[1764088898229,0.9606,2929.8,2929.7,3.63331876]
[1764088898443,0.9606,2929.8,2929.6,0.22]
[1764088898621,0.4964,2929.7,2929.6,0.22]
[1764088898792,0.9594,2929.7,2929.4,0.22]
[1764088898997,0.463,2929.5,2929.4,0.22]
[1764088899417,0.9594,2929.5,2928.9,6.82850216]
[1764088899623,0.9594,2929.4,2929.0,0.22]
[1764088899826,0.463,2929.1,2928.9,6.82850216]
[1764088900035,0.463,2929.1,2929.0,0.22]
[1764088900429,0.9594,2929.1,2929.0,0.22]
[1764088900627,0.9594,2929.1,2928.2,0.22]
[1764088900628,0.3866,2928.9,2928.2,0.22]
[1764088900798,0.4603,2928.8,2928.2,0.22]
[1764088901413,0.1915,2928.9,2928.3,0.166]
[1764088901600,10.22,2930.0,2928.3,0.166]
[1764088901601,0.4964,2929.2,2928.4,0.22]
[1764088901831,0.4964,2929.2,2928.5,0.405504]
[1764088902012,0.4964,2929.2,2928.1,0.166]
[1764088902496,0.4964,2929.2,2928.3,6.8299013]
[1764088902702,0.4964,2929.2,2928.4,0.72559411]
[1764088904536,0.4964,2929.2,2928.5,6.82943486]
[1764088904702,0.4964,2929.2,2928.6,0.22]
[1764088906035,0.463,2928.7,2928.6,0.22]
[1764088906526,0.463,2928.7,2928.6,3.63460083]
[1764088906839,0.9594,2928.7,2928.6,3.63460083]
[1764088907014,0.9594,2928.7,2928.3,7.0498262]
[1764088907218,0.1951,2928.5,2928.3,7.0498262]
[1764088907732,0.1915,2928.8,2928.3,7.0498262]
[1764088908245,0.6879,2928.8,2928.3,7.0498262]
[1764088908614,0.1915,2929.0,2928.3,10.46477685]
[1764088908807,0.1915,2929.0,2928.3,10.92427685]
[1764088909536,0.1915,2929.0,2928.4,0.405504]
[1764088910059,0.1915,2929.0,2928.5,0.001]
[1764088910418,0.31808661,2929.1,2928.5,0.001]
[1764088910655,0.467,2930.0,2929.1,10.64755785]
[1764088910854,0.4682,2929.8,2929.2,0.22]
[1764088911147,0.31805027,2929.7,2929.2,0.22]
[1764088911518,0.4881,2929.3,2929.1,7.2335399]
[1764088911751,0.4881,2929.3,2929.2,0.22]
[1764088912352,0.0012,2929.8,2929.2,0.6927]
[1764088912556,0.002,2930.1,2929.7,5.1929293]
[1764088912720,0.002,2930.1,2930.0,0.97673061]
[1764088912920,0.002,2930.1,2930.0,1.43973061]
[1764088913457,0.1915,2931.4,2930.4,0.405504]
[1764088913659,0.1915,2931.4,2930.3,0.4727]
[1764088913660,0.1915,2931.4,2930.7,0.405504]
[1764088913963,0.6585,2931.4,2930.6,0.405504]
[1764088914750,0.6585,2931.4,2930.8,0.405504]
[1764088914918,0.1987,2931.7,2931.0,0.405504]
[1764088915123,0.002,2931.7,2931.2,0.09852661]
[1764088915325,0.002,2931.7,2931.3,0.625504]
[1764088915630,0.002,2931.7,2931.4,0.22]
[1764088916946,0.002,2931.7,2931.5,6.82244584]
[1764088918356,0.002,2931.7,2931.6,0.405504]
[1764088918860,0.002,2931.7,2931.6,1.374504]
[1764088919359,0.002,2931.7,2931.6,4.78561056]
[1764088919660,0.002,2931.7,2931.6,4.28711056]
[1764088919863,0.002,2931.7,2931.6,3.81661056]
[1764088920038,0.002,2931.7,2931.6,4.03661056]
[1764088920234,0.461,2931.7,2931.6,3.41110656]
[1764088920860,0.9172,2931.7,2930.9,3.41188208]
[1764088921166,0.2504,2931.6,2930.9,3.63088208]
[1764088921465,0.4577,2931.0,2930.9,7.04280333]
[1764088921682,0.9139,2931.0,2929.8,0.628]
[1764088921864,0.6363,2930.9,2929.9,13.87134308]
[1764088922280,0.6363,2930.9,2930.0,0.405504]
[1764088922444,0.4562,2930.8,2929.9,10.45825731]
[1764088922633,0.4562,2930.8,2930.0,0.219]
[1764088922939,0.0012,2931.7,2930.8,0.405504]
[1764088923149,0.0012,2931.7,2930.9,0.219]
[1764088923150,0.4562,2931.6,2930.9,0.219]
[1764088923345,0.4562,2931.6,2931.0,6.82360968]
[1764088924137,0.4562,2931.6,2931.1,0.405504]
[1764088924865,0.0012,2931.7,2931.3,0.405504]
[1764088925073,0.0012,2931.7,2931.5,0.405504]
[1764088925573,0.0012,2931.7,2931.6,3.41110656]
[1764088927481,0.0012,2931.7,2931.6,4.28711056]
[1764088927693,0.0012,2931.7,2931.6,4.88413717]
[1764088929245,0.0012,2931.7,2931.6,5.60973128]
[1764088929448,0.002,2932.3,2932.0,0.50403061]
[1764088929648,0.002,2932.3,2932.2,0.50403061]
[1764088929886,0.002,2932.3,2932.2,1.63903061]
[1764088930585,0.002,2932.3,2932.2,1.759504]
[1764088930882,0.002,2932.3,2932.2,1.85803061]
[1764088931460,0.1801,2935.0,2932.2,1.759504]
[1764088931666,0.1801,2935.0,2933.8,0.405504]
[1764088931873,0.1801,2935.0,2933.7,0.09852661]
[1764088931874,0.4562,2934.9,2934.0,0.405504]
[1764088932061,0.4562,2934.9,2934.1,0.219]
[1764088933116,0.1801,2935.0,2934.2,0.50403061]
[1764088933311,0.1801,2935.0,2934.4,0.405504]
[1764088933467,0.1801,2935.0,2934.6,0.405504]
[1764088933762,0.1801,2935.0,2934.1,0.4985]
[1764088933763,0.4562,2934.9,2934.7,0.219]
[1764088933967,0.4598,2934.6,2934.1,0.405504]
[1764088934280,0.4598,2934.6,2934.3,0.405504]
[1764088934784,0.1801,2935.0,2934.3,0.405504]
[1764088935102,0.1801,2935.0,2934.5,0.405504]
[1764088935600,0.1801,2935.2,2934.5,0.405504]
[1764088935767,0.6363,2935.2,2934.7,0.405504]
[1764088936100,0.6363,2935.2,2934.8,0.219]
[1764088936770,0.4562,2935.9,2935.2,0.405504]
[1764088936971,0.1801,2936.1,2935.4,0.405504]
[1764088937199,0.6363,2936.1,2935.4,0.405504]
[1764088937581,0.4562,2936.0,2934.8,0.72559411]
[1764088937809,0.4562,2936.0,2935.1,0.405504]
[1764088938206,3.86220474,2936.0,2935.2,0.219]
[1764088938389,0.4562,2936.0,2935.2,0.219]
[1764088938590,0.4562,2935.9,2935.2,0.219]
[1764088939406,0.1801,2936.1,2935.2,0.219]
[1764088939609,0.1801,2936.1,2935.2,0.31752661]
[1764088939810,0.6363,2936.1,2935.4,0.405504]
[1764088940307,0.4801,2936.0,2935.5,0.219]
[1764088940805,0.4874,2935.6,2935.5,0.219]
[1764088941373,0.9675,2935.6,2934.9,0.405504]
[1764088941673,0.2324,2935.4,2934.8,3.40730667]
[1764088941873,0.2324,2935.4,2934.9,0.94459411]
[1764088942072,0.4801,2935.3,2934.9,0.94459411]
[1764088942680,0.4801,2935.7,2934.9,0.94459411]
[1764088942889,7.2920891,2936.0,2934.9,0.94459411]
[1764088943089,0.4874,2935.0,2933.9,4.92442588]
[1764088943290,0.2324,2934.9,2934.0,0.219]
[1764088943488,0.4159,2934.9,2934.0,0.219]
[1764088943701,0.4159,2934.9,2934.2,3.40808397]
[1764088944012,0.896,2934.9,2934.2,3.40808397]
[1764088944214,0.4773,2934.3,2934.2,0.219]
[1764088944416,0.4801,2934.5,2934.2,0.219]
[1764088944988,3.40671622,2935.4,2934.2,0.219]
[1764088944989,0.72559411,2935.7,2934.4,0.4813]
[1764088945192,0.002,2936.1,2935.6,0.6473]
[1764088945515,0.002,2936.1,2936.0,0.886804]
[1764088945812,0.002,2936.1,2936.0,5.01839266]
[1764088946805,0.002,2936.1,2936.0,5.51179266]
[1764088947183,0.002,2936.1,2936.0,5.01839266]
[1764088947595,0.002,2936.1,2936.0,4.53709266]
[1764088948206,0.4894,2936.1,2936.0,3.62499455]
[1764088948534,0.002,2936.1,2936.0,4.03049855]
[1764088949023,0.002,2936.1,2936.0,3.62499455]
[1764088949024,0.9695,2936.1,2936.0,3.62499455]
[1764088949398,0.9695,2936.1,2935.3,0.166]
[1764088949599,0.6682,2935.4,2935.0,3.40705783]
[1764088949906,0.1835,2935.4,2934.9,3.40727111]
[1764088950112,0.4801,2935.3,2934.9,3.40727111]
[1764088950523,0.4874,2935.0,2934.8,3.626363]
[1764088950728,0.4874,2935.0,2934.5,0.17805858]
[1764088950729,0.2207,2934.9,2934.5,3.804778]
[1764088951029,0.2207,2934.9,2934.5,7.21251355]
[1764088951372,0.4801,2935.3,2934.5,7.03445497]
[1764088951628,0.4801,2935.3,2934.6,0.72559411]
[1764088951829,0.4801,2935.3,2934.5,10.44219052]
[1764088951830,0.4801,2935.3,2934.5,6.81545497]
[1764088952036,0.4801,2935.3,2934.6,3.62652338]
[1764088952531,0.4801,2935.3,2934.6,7.03414281]
[1764088954841,0.4801,2935.3,2934.6,10.44176224]
[1764088955044,0.1835,2935.4,2934.6,10.44176224]
[1764088955045,0.1835,2935.4,2934.7,0.405504]
[1764088955249,0.1835,2935.4,2934.7,1.13109811]
[1764088955562,0.4801,2935.7,2934.7,1.13109811]
[1764088956140,0.4801,2935.7,2934.9,0.405504]
[1764088956438,0.4801,2935.7,2935.0,0.219]
[1764088957302,0.31629439,2935.6,2935.0,0.219]
[1764088957749,0.4874,2935.1,2933.8,0.4934]
[1764088958039,0.4801,2935.5,2934.2,0.72559411]
[1764088958040,0.2215,2935.0,2934.2,0.72559411]
[1764088958242,0.72559411,2935.6,2934.1,7.03540024]
[1764088958243,0.4801,2935.4,2934.4,0.72559411]
[1764088958411,0.4801,2935.4,2934.5,0.219]
[1764088958412,0.31681933,2935.3,2934.5,0.219]
[1764088958743,0.31681933,2935.3,2934.6,0.405504]
[1764088959246,0.4801,2935.7,2934.6,0.405504]
[1764088959544,0.31738858,2935.6,2934.6,0.405504]
[1764088959839,0.31738858,2935.5,2934.6,0.405504]
[1764088960158,0.31738858,2935.4,2934.6,0.405504]
[1764088960300,0.31738858,2935.3,2934.8,0.405504]
[1764088960499,0.31738858,2935.2,2934.9,0.219]
[1764088960738,0.31738858,2935.1,2934.9,0.219]
[1764088961040,0.4801,2935.6,2934.9,0.219]
[1764088961228,0.31775128,2935.5,2934.9,0.219]
[1764088961443,0.4801,2935.6,2934.9,0.219]
[1764088961444,0.31775128,2935.4,2934.9,0.219]
[1764088961614,0.31775128,2935.3,2934.9,0.219]
[1764088961815,0.31775128,2935.2,2934.9,0.219]
[1764088962014,0.4874,2935.0,2934.9,0.219]
[1764088962252,1.28525128,2935.0,2934.4,1.13109811]
[1764088962553,0.50125128,2934.9,2934.6,0.72559411]
[1764088962859,0.31775128,2934.8,2934.6,0.72559411]
[1764088963053,0.1835,2934.9,2934.6,0.72559411]
[1764088963240,0.3182746,2934.8,2934.6,0.72559411]
[1764088963441,0.1835,2935.2,2934.6,0.72559411]
[1764088963643,0.31828157,2935.1,2934.6,0.72559411]
[1764088963843,0.31828157,2935.0,2934.6,0.72559411]
[1764088964017,0.31828157,2934.9,2934.6,0.72559411]
[1764088964218,0.31828157,2934.8,2934.7,3.40750332]
[1764088964833,0.80568157,2934.8,2934.7,3.40750332]
[1764088965033,0.31828157,2934.8,2934.7,3.40750332]
[1764088965831,0.31828157,2934.8,2934.7,3.88880332]
[1764088966446,0.31828157,2934.8,2934.7,3.40750332]
[1764088967088,0.80568157,2934.8,2934.7,3.40750332]
[1764088967291,0.31828157,2934.8,2934.7,5.01990143]
[1764088967491,0.002,2935.4,2934.8,1.22962472]
[1764088967655,0.002,2935.4,2935.3,1.035404]
[1764088967843,0.002,2935.4,2935.3,1.254404]
[1764088968042,0.002,2935.4,2935.3,1.747804]
[1764088968247,0.0012,2935.4,2935.3,1.84633061]
[1764088968550,0.0012,2935.4,2935.3,5.97873151]
[1764088970237,0.0012,2935.4,2935.3,5.6612049]
[1764088970343,0.0012,2935.4,2935.3,5.3868049]
[1764088971992,0.0012,2935.4,2935.3,3.40680679]
[1764088972288,0.4781,2935.4,2935.3,3.62580679]
[1764088972644,0.0012,2935.4,2935.3,3.62580679]
[1764088972988,0.4781,2935.4,2935.3,3.40680679]
[1764088973156,0.4781,2935.4,2935.3,3.62580679]
[1764088973347,0.0012,2935.4,2935.3,3.62580679]
[1764088973764,0.4781,2935.4,2935.3,3.62580679]
[1764088974277,0.0012,2935.4,2935.3,3.62580679]
[1764088975669,0.9713,2935.4,2935.3,3.62580679]
[1764088976843,0.0012,2935.4,2935.3,3.62580679]
[1764088977462,0.0012,2935.4,2935.3,4.11670679]
[1764088977657,0.0012,2935.4,2935.3,4.03131079]
[1764088977868,0.0012,2935.4,2935.3,3.40680679]
[1764088978092,0.0012,2935.4,2935.3,3.62580679]
[1764088979087,0.9432,2935.4,2935.3,3.62580679]
[1764088979702,0.0012,2935.4,2935.3,3.62580679]
[1764088979907,0.0012,2935.4,2935.3,3.65987485]
[1764088980110,0.0012,2935.4,2935.3,3.62580679]
[1764088980265,0.0012,2935.4,2935.3,4.09230679]
[1764088980702,0.0012,2935.4,2935.3,9.85646328]
[1764088981277,0.0012,2935.4,2935.3,9.85746328]
[1764088982299,0.0012,2935.4,2935.3,4.09330679]
[1764088983506,0.0012,2935.4,2935.3,3.62680679]
[1764088984462,0.4544,2935.4,2935.3,3.40780679]
[1764088984663,0.9195,2935.4,2935.3,0.001]
[1764088984979,1.23807167,2935.4,2935.3,0.001]
[1764088985400,6.81361358,2935.3,2935.0,0.001]
[1764088985634,0.2529,2935.1,2935.0,0.001]
[1764088985931,0.57147167,2935.1,2935.0,0.001]
[1764088986129,1.03657167,2935.1,2935.0,0.001]
[1764088986498,0.57147167,2935.1,2935.0,0.001]
[1764088986704,1.23687167,2935.1,2935.0,0.001]
[1764088987313,0.9183,2935.1,2935.0,0.001]
[1764088987512,0.0012,2935.4,2935.0,0.001]
[1764088987713,0.4532,2935.1,2935.0,0.001]
[1764088988009,0.9183,2935.1,2935.0,0.001]
[1764088988310,0.4532,2935.1,2935.0,0.001]
[1764088988633,0.9183,2935.1,2935.0,0.001]
[1764088988831,0.0012,2935.4,2935.0,0.001]
[1764088989021,0.4651,2935.3,2935.0,0.001]
[1764088989836,3.40564656,2936.3,2935.0,0.001]
[1764088990038,0.6118,2935.1,2935.0,0.001]
[1764088990207,0.393375,2935.1,2935.0,0.001]
[1764088992306,0.392575,2935.1,2935.0,0.001]
[1764088992520,0.2674,2935.6,2935.0,0.001]
[1764088992718,0.0027,2935.1,2935.0,0.001]
[1764088993139,0.2675,2935.1,2935.0,0.001]
[1764088994642,0.0027,2935.1,2935.0,0.001]
[1764088995034,0.2675,2935.1,2935.0,0.001]
[1764088995473,0.0027,2935.1,2935.0,0.001]
[1764088995836,0.2675,2935.1,2935.0,0.001]
[1764088996035,0.0027,2935.1,2935.0,0.001]
[1764088996239,0.318443,2935.4,2935.0,0.001]
[1764088996537,0.2674,2935.7,2935.0,0.001]
[1764088996842,0.58582973,2935.6,2935.0,0.001]
[1764088997162,0.31842973,2935.5,2935.0,0.001]
[1764088997961,0.2674,2935.4,2935.0,0.001]
[1764088998637,0.0027,2935.1,2935.0,0.001]
[1764088999181,0.2675,2935.1,2935.0,0.001]
[1764088999339,0.2674,2935.7,2935.0,0.001]
[1764088999533,0.31846178,2935.6,2935.1,0.1894]
[1764088999843,3.40599455,2936.0,2935.0,0.001]
[1764089000044,3.40582869,2936.2,2935.0,0.001]
[1764089000045,0.31843463,2935.9,2935.0,0.001]
[1764089000363,4.13152268,2936.1,2935.0,0.001]
[1764089000364,0.002,2935.7,2935.0,0.001]
[1764089000750,0.2694,2935.7,2935.0,0.001]
[1764089001073,0.002,2935.7,2935.0,0.001]
[1764089001279,0.002,2935.7,2935.1,0.4599]
[1764089001483,0.002,2935.7,2935.2,0.219]
[1764089001855,0.002,2935.7,2935.4,6.81338148]
[1764089002258,0.002,2935.7,2935.4,3.40669074]
[1764089002586,0.002,2935.7,2935.4,6.81338148]
[1764089002754,0.002,2935.7,2935.4,3.40669074]
[1764089002959,0.0027,2935.5,2935.3,3.4067494]
[1764089003166,0.0026,2935.4,2935.1,3.40699773]
[1764089003373,0.0027,2935.3,2935.1,3.40699773]
[1764089003551,0.0026,2935.2,2935.1,3.40699773]
[1764089003950,0.0026,2935.2,2935.0,3.40815076]
[1764089004157,0.0026,2935.2,2935.0,6.81530578]
[1764089004371,0.0026,2935.2,2935.0,3.40815076]
[1764089004551,0.0026,2935.1,2935.0,3.40815076]
[1764089005152,0.2674,2935.5,2935.0,6.81530578]
[1764089005352,0.2674,2935.5,2935.0,3.40815076]
[1764089005593,0.2674,2935.5,2935.0,6.81530578]
[1764089006289,0.2694,2935.7,2935.0,6.81530578]
[1764089006453,0.58603304,2935.6,2935.0,6.81530578]
[1764089006782,0.31863304,2935.5,2935.0,6.81530578]
[1764089007380,0.58603304,2935.5,2935.0,6.81530578]
[1764089007680,0.2674,2935.5,2935.0,6.81530578]
[1764089008095,0.002,2935.7,2935.0,7.27520578]
[1764089008283,0.002,2935.7,2935.0,6.81530578]
[1764089010588,0.002,2935.7,2935.0,10.6823608]
[1764089010793,0.002,2935.7,2935.1,0.4599]
[1764089012303,0.002,2935.7,2935.0,10.2224608]
[1764089012462,0.2694,2935.7,2935.0,6.81530578]
[1764089012669,0.2694,2935.7,2935.1,0.219]
[1764089012866,0.002,2935.7,2935.0,0.001]
[1764089013114,0.002,2935.7,2935.1,0.6552]
[1764089013777,0.002,2935.7,2935.2,0.219]
[1764089014182,0.2694,2935.7,2935.2,0.219]
[1764089014510,0.2694,2935.7,2935.0,0.001]
[1764089014808,0.2694,2935.7,2935.0,0.22]
[1764089015170,0.2694,2935.7,2935.0,0.001]
[1764089016187,0.2686,2935.7,2935.0,0.001]
[1764089016645,3.6749436,2935.7,2935.0,0.001]
[1764089016821,0.2674,2935.6,2935.0,0.001]
[1764089018428,0.2197,2935.1,2935.0,0.001]
[1764089019280,0.4867,2935.1,2935.0,0.001]
[1764089019527,0.267,2935.6,2935.0,0.001]
[1764089019828,0.4845,2935.6,2935.0,0.001]
[1764089020325,0.0012,2935.7,2935.0,0.001]
[1764089021024,0.4857,2935.7,2935.0,0.001]
[1764089021696,0.4857,2935.7,2935.1,0.1953]
[1764089021901,0.0012,2935.7,2935.1,0.1953]
[1764089022508,0.0012,2935.7,2935.2,0.219]
[1764089022688,0.4857,2935.7,2935.3,3.40680679]
[1764089023920,0.0012,2935.7,2935.3,10.68032037]
[1764089024120,0.0012,2935.7,2935.4,0.4599]
[1764089024338,0.0012,2935.7,2935.3,6.81361358]
[1764089024556,0.0012,2935.7,2935.3,3.40680679]
[1764089024831,0.4845,2935.6,2935.3,0.219]
[1764089025234,0.4845,2935.6,2935.0,0.22]
[1764089026044,0.0012,2935.7,2935.0,0.22]
[1764089026219,0.0012,2935.7,2935.0,0.6799]
[1764089026672,0.0012,2935.7,2935.1,0.4599]
[1764089027167,0.0012,2935.7,2935.2,10.22076858]
[1764089027644,0.0012,2935.7,2935.3,0.4599]
[1764089028849,0.0012,2935.7,2935.2,6.81384572]
[1764089029026,0.0012,2935.7,2935.2,3.40692286]
[1764089029753,0.0012,2935.7,2935.1,6.81407788]
[1764089029918,0.0012,2935.7,2935.1,10.22111682]
[1764089030122,0.0012,2935.7,2935.2,0.219]
[1764089030530,0.0012,2935.7,2935.2,0.6713]
[1764089030759,0.0012,2935.7,2935.2,0.219]
[1764089030954,0.4533,2935.6,2935.2,0.219]
[1764089031264,0.0012,2935.7,2935.3,6.81361358]
[1764089031557,0.4545,2935.7,2935.3,3.40680679]
[1764089031761,0.0357,2935.4,2935.3,3.40680679]
[1764089032330,0.0012,2935.7,2935.3,6.81361358]
[1764089032535,0.0012,2935.7,2935.3,7.27371358]
[1764089032737,0.4545,2935.7,2935.3,6.81361358]
[1764089032950,0.0357,2935.4,2935.3,3.40680679]
[1764089033458,0.0012,2935.7,2935.3,7.27371358]
[1764089034232,0.0012,2935.7,2935.3,6.81361358]
[1764089035261,0.4545,2935.7,2935.3,6.81361358]
[1764089035855,0.0357,2935.4,2935.3,3.40680679]
[1764089036669,0.0012,2935.7,2935.3,7.27371358]
[1764089037566,0.0357,2935.4,2935.1,0.001]
[1764089037765,0.0399,2935.2,2935.1,0.001]
[1764089038278,0.4849,2935.2,2935.1,0.001]
[1764089038446,0.0399,2935.2,2935.1,0.001]
[1764089038642,0.4845,2935.6,2935.1,3.40803894]
[1764089039047,0.0012,2935.7,2935.1,3.40803894]
[1764089039048,0.0012,2935.7,2935.2,0.4728]
[1764089039260,0.0012,2935.7,2935.1,7.03407788]
[1764089039456,0.4857,2935.7,2935.1,7.03407788]
[1764089040076,0.4857,2935.7,2935.1,3.40803894]
[1764089040279,0.4857,2935.7,2935.1,3.62703894]
[1764089040280,0.4849,2935.7,2935.1,3.62703894]
[1764089040478,0.4849,2935.7,2935.1,7.03407788]
[1764089040979,0.0004,2935.7,2935.6,0.4828]
[1764089041278,0.0004,2935.7,2935.6,0.7018]
[1764089041452,0.0004,2935.7,2935.6,1.1746]
[1764089041652,0.0004,2935.7,2935.6,4.58105864]
[1764089042579,0.0004,2935.7,2935.6,4.10825864]
[1764089042748,0.0004,2935.7,2935.6,3.62545864]
[1764089043148,0.4815,2935.7,2935.4,3.40665765]
[1764089043364,0.4811,2935.2,2935.1,3.40795588]
[1764089043685,0.4811,2935.2,2935.1,0.001]
[1764089043904,3.88802286,2935.2,2935.1,0.001]
[1764089044400,0.4811,2935.2,2935.1,0.001]
[1764089044551,4.61361697,2935.2,2935.1,0.001]
[1764089044754,3.970093,2935.0,2934.9,0.001]
[1764089044980,1.21009411,2935.1,2934.7,0.001]
[1764089044981,4.41945411,2934.8,2934.7,0.001]
[1764089045179,3.54355711,2934.8,2934.7,0.001]
[1764089045382,4.72805711,2934.8,2934.4,0.001]
[1764089045603,0.91909591,2935.0,2934.4,0.001]
[1764089045604,4.31912966,2934.5,2934.4,0.001]
[1764089046109,4.80122966,2934.5,2934.4,0.001]
[1764089046274,8.85240966,2934.5,2934.4,0.001]
[1764089046475,4.80122966,2934.5,2934.4,0.001]
[1764089048005,5.29139411,2934.3,2932.9,3.40950614]
[1764089048204,0.4911,2934.4,2933.0,3.40946811]
[1764089048205,0.0583,2934.1,2933.0,3.40946811]
[1764089048410,4.85070011,2934.1,2932.9,3.40954521]
[1764089048608,5.33700011,2934.1,2933.0,3.40945239]
[1764089048806,6.76735503,2934.1,2932.5,0.4728]
[1764089049007,0.72559411,2934.0,2933.1,0.197]
[1764089049217,1.51115092,2934.1,2933.1,0.6698]
[1764089049397,1.02485092,2934.1,2932.6,10.22979987]
[1764089049601,0.4863,2934.0,2932.7,0.4728]
[1764089050120,0.72559411,2933.8,2932.8,6.8194217]
[1764089050618,0.4863,2933.7,2932.8,7.2922217]
[1764089050799,1.75044503,2934.1,2932.8,10.22913255]
[1764089050996,0.51314632,2935.3,2932.8,10.22913255]
[1764089050997,1.21189411,2934.2,2932.9,0.4728]
[1764089051209,0.4863,2934.2,2932.9,0.4728]
[1764089051377,0.72559411,2934.1,2932.9,0.4728]
[1764089051973,3.40843246,2933.9,2932.9,4.10129411]
[1764089052189,0.72559411,2933.8,2932.9,7.5108887]
[1764089052390,0.4863,2933.9,2932.9,7.5108887]
[1764089052598,1.21189411,2933.9,2933.0,0.4728]
[1764089052783,1.21189411,2933.9,2933.1,0.197]
[1764089053489,0.72559411,2933.9,2933.0,0.4738]
[1764089053678,0.72559411,2933.9,2933.1,0.197]
[1764089053884,0.72559411,2934.0,2933.2,0.4728]
[1764089054084,0.72559411,2934.0,2933.3,3.40912964]
[1764089054484,0.72559411,2934.3,2933.3,6.81825928]
[1764089054821,0.72559411,2934.3,2933.3,7.29105928]
[1764089055116,0.72559411,2934.3,2933.4,0.4728]
[1764089055427,6.81570338,2934.4,2933.4,0.4728]
[1764089055428,3.40785169,2934.4,2933.4,0.4728]
[1764089055926,0.72559411,2934.3,2933.4,0.4728]
[1764089056223,3.40808397,2934.2,2933.5,6.81779444]
[1764089056584,0.72559411,2934.2,2933.5,6.81779444]
[1764089057002,0.72559411,2934.2,2933.2,3.40915607]
[1764089057587,0.72559411,2934.2,2933.2,3.88195607]
[1764089057783,0.72559411,2934.2,2933.2,7.29120194]
[1764089058009,0.72559411,2934.2,2933.3,0.4728]
[1764089058205,0.72559411,2934.0,2933.0,0.001]
[1764089058392,0.72559411,2934.0,2933.0,3.41042939]
[1764089059096,0.72559411,2934.0,2933.0,3.41047437]
[1764089060731,0.72559411,2933.8,2933.0,0.001]
[1764089061845,0.72559411,2933.8,2933.1,0.1953]
[1764089062543,0.72559411,2934.2,2933.2,0.03409245]
[1764089062746,3.40807718,2934.3,2933.2,6.81849174]
[1764089062747,0.72559411,2934.0,2933.2,6.81849174]
[1764089062943,0.72559411,2934.0,2933.2,7.29699174]
[1764089063245,0.72559411,2934.0,2933.3,0.219]
[1764089064250,0.72479411,2934.0,2933.1,3.40929219]
[1764089064435,0.72479411,2934.0,2933.0,0.001]
[1764089064436,4.90062,2933.8,2933.0,0.001]
[1764089064648,10.22634303,2933.6,2933.0,0.001]
[1764089064851,0.31693465,2933.5,2933.0,0.001]
[1764089065059,6.81756202,2933.6,2933.0,0.001]
[1764089065351,0.13665706,2933.4,2933.0,0.001]
[1764089066453,0.45366954,2933.4,2933.0,0.001]
[1764089066656,4.13495621,2933.1,2933.0,0.001]
[1764089066829,4.45196869,2933.1,2933.0,0.001]
[1764089067151,13.41778169,2933.1,2933.0,0.001]
[1764089067441,11.09691769,2933.1,2933.0,0.001]
[1764089067814,4.85747269,2933.1,2933.0,0.001]
[1764089068456,4.45196869,2933.1,2933.0,0.001]
[1764089071553,4.45242331,2933.1,2933.0,0.001]
[1764089073068,11.87234631,2933.1,2933.0,0.001]
[1764089073272,11.05611331,2933.1,2933.0,0.001]
[1764089073570,11.05611331,2933.1,2932.8,0.001]
[1764089073571,12.70350011,2932.9,2932.8,0.001]
[1764089073729,11.32259521,2932.9,2932.8,0.001]
[1764089074124,20.23295721,2932.9,2932.8,0.001]
[1764089074436,14.79827021,2932.9,2932.8,0.001]
[1764089075042,4.9271598,2932.9,2932.8,0.001]
[1764089075222,16.55975086,2932.9,2932.8,0.001]
[1764089075427,16.66097254,2932.9,2932.8,0.001]
[1764089075649,10.65084701,2932.9,2932.8,0.001]
[1764089075960,10.13664801,2932.9,2932.8,0.001]
[1764089076161,13.11123901,2932.9,2932.8,0.001]
[1764089076532,10.33074601,2932.9,2932.8,0.001]
[1764089077240,35.16474551,2932.9,2932.8,0.001]
[1764089077441,0.72559411,2932.8,2932.5,0.001]
[1764089077636,12.38606411,2932.6,2932.5,0.001]
[1764089077836,6.56796468,2932.6,2932.5,0.001]
[1764089078061,6.72326468,2932.6,2932.5,0.001]
[1764089078262,9.10330768,2932.6,2932.5,0.001]
[1764089078437,9.240032,2932.6,2932.5,0.001]
[1764089078771,9.240032,2932.6,2932.4,0.001]
[1764089078966,1.13109811,2931.7,2931.2,0.001]
[1764089079154,4.95044624,2931.6,2931.2,0.001]
[1764089079472,5.10574624,2931.6,2931.2,0.001]
[1764089079672,5.24250375,2931.6,2931.2,0.001]
[1764089080456,4.59179975,2931.6,2931.2,0.001]
[1764089081045,4.74709975,2931.6,2931.2,0.001]
[1764089087781,5.30790375,2931.6,2931.2,0.001]
[1764089087987,13.35656875,2931.6,2931.2,0.001]